fUST/lending_fUST_20250311
["ID","MTS","AMOUNT","RATE_DAILY","PERIOD"]
[355893295,1741692652469,-500.0,0.00032876,7]
[355893296,1741692652478,-500.0,0.00032876,7]
[355893297,1741692652488,-154.116845,0.00032876,7]
[355893298,1741692652499,-447.21921521,0.00032876,7]
[355893299,1741692652510,-1099.33,0.00032876,7]
[355893300,1741692652519,-151.0,0.00032876,7]
[355893301,1741692652529,-151.0,0.00032876,7]
[355893302,1741692652539,-151.0,0.00032876,7]
[355893303,1741692652549,-500.0,0.00032876,7]
[355893304,1741692652559,-151.0,0.00032876,7]
[355893305,1741692652571,-219.339216,0.00032876,7]
[355893306,1741692652580,-500.0,0.00032876,7]
[355893307,1741692652590,-500.0,0.00032876,7]
[355893308,1741692652600,-500.0,0.00032876,7]
[355893309,1741692652610,-500.0,0.00032876,7]
[355893310,1741692652774,-535.75144631,0.00032876,7]
[355893311,1741692652785,-500.0,0.00032876,7]
[355893312,1741692652795,-961.92,0.00032876,7]
[355893313,1741692652805,-500.0,0.00032876,7]
[355893314,1741692652817,-500.0,0.00032876,7]
[355893315,1741692652827,-500.0,0.00032876,7]
[355893316,1741692652837,-500.0,0.00032876,7]
[355893317,1741692652851,-500.0,0.00032876,7]
[355893318,1741692652861,-500.0,0.00032876,7]
[355893319,1741692652871,-500.0,0.00032876,7]
[355893320,1741692652881,-629.88387154,0.00032876,7]
[355893321,1741692652891,-500.0,0.00032876,7]
[355893322,1741692652901,-500.0,0.00032876,7]
[355893323,1741692652911,-416.66666667,0.00032876,7]
[355893324,1741692652921,-1068.87,0.00032876,7]
[355893325,1741692652931,-1068.87,0.00032876,7]
[355893326,1741692652940,-1068.87,0.00032876,7]
[355893327,1741692652950,-500.0,0.00032876,7]
[355893328,1741692652960,-1068.87,0.00032876,7]
[355893329,1741692652970,-500.0,0.00032876,7]
[355893330,1741692652979,-1068.87,0.00032876,7]
[355893331,1741692652989,-1068.87,0.00032876,7]
[355893332,1741692652998,-1068.87,0.00032876,7]
[355893333,1741692653009,-1068.87,0.00032876,7]
[355893334,1741692653019,-1068.87,0.00032876,7]
[355893335,1741692653028,-1068.87,0.00032876,7]
[355893336,1741692653038,-1068.87,0.00032876,7]
[355893337,1741692653047,-1068.87,0.00032876,7]
[355893338,1741692653057,-1292.1,0.00032876,7]
[355893339,1741692653069,-500.0,0.00032876,7]
[355893340,1741692653078,-500.0,0.00032876,5]
[355893341,1741692653087,-1460.53,0.00032876,7]
[355893342,1741692653097,-500.0,0.00032876,7]
[355893343,1741692653106,-500.0,0.00032876,7]
[355893344,1741692653116,-500.0,0.00032876,7]
[355893345,1741692653126,-500.0,0.00032876,7]
[355893346,1741692653135,-500.0,0.00032876,7]
[355893347,1741692653144,-746.0,0.00032876,7]
[355893348,1741692653154,-500.0,0.00032876,7]
[355893349,1741692653163,-500.0,0.00032876,7]
[355893350,1741692653173,-500.0,0.00032876,7]
[355893351,1741692653182,-505.72165987,0.00032876,7]
[355893352,1741692653192,-842.47,0.00032876,3]
[355893353,1741692653201,-500.0,0.00032876,7]
[355893354,1741692653211,-500.0,0.00032876,7]
[355893355,1741692653220,-501.62113148,0.00032876,7]
[355893356,1741692653230,-475.12603792,0.00032876,7]
[355893357,1741692653239,-500.0,0.00032876,7]
[355893358,1741692653249,-500.0,0.00032876,7]
[355893359,1741692653258,-500.0,0.00032876,7]
[355893360,1741692653267,-511.96507088,0.00032876,7]
[355893361,1741692653277,-500.0,0.00032876,7]
[355893362,1741692653286,-500.0,0.00032876,7]
[355893363,1741692653296,-500.0,0.00032876,7]
[355893364,1741692653305,-500.0,0.00032876,7]
[355893365,1741692653316,-500.0,0.00032876,7]
[355893366,1741692653326,-500.0,0.00032876,7]
[355893367,1741692653335,-500.0,0.00032876,7]
[355893368,1741692653345,-500.0,0.00032876,7]
[355893369,1741692653354,-531.33,0.00032876,7]
[355893370,1741692653364,-500.0,0.00032876,7]
[355893371,1741692653374,-500.0,0.00032876,7]
[355893372,1741692653384,-500.0,0.00032876,7]
[355893373,1741692653394,-500.0,0.00032876,7]
[355893374,1741692653404,-3755.89,0.00032876,7]
[355893375,1741692653414,-500.0,0.00032876,7]
[355893376,1741692653424,-508.87852592,0.00032876,7]
[355893377,1741692653436,-500.0,0.00032876,7]
[355893378,1741692653446,-441.0082024,0.00032876,7]
[355893379,1741692653456,-500.0,0.00032876,7]
[355893380,1741692653466,-697.55,0.00032876,7]
[355893381,1741692653476,-500.0,0.00032876,7]
[355893382,1741692653486,-500.0,0.00032876,7]
[355893383,1741692653496,-500.0,0.00032876,7]
[355893384,1741692653507,-500.0,0.00032876,7]
[355893385,1741692653516,-885.89,0.00032876,7]
[355893386,1741692653526,-500.0,0.00032876,7]
[355893387,1741692653536,-500.0,0.00032876,7]
[355893388,1741692653545,-500.0,0.00032876,7]
[355893389,1741692653555,-500.0,0.00032876,7]
[355893390,1741692653566,-500.0,0.00032876,7]
[355893391,1741692653576,-546.27,0.00032876,7]
[355893392,1741692653585,-500.0,0.00032876,7]
[355893393,1741692653595,-500.0,0.00032876,7]
[355893394,1741692653604,-500.0,0.00032876,7]
[355893395,1741692653614,-500.0,0.00032876,7]
[355893396,1741692653624,-373.80255331,0.00032876,7]
[355893397,1741692653633,-500.0,0.00032876,7]
[355893398,1741692653643,-500.0,0.00032876,7]
[355893399,1741692653652,-500.0,0.00032876,7]
[355893400,1741692653662,-500.0,0.00032876,7]
[355893401,1741692653672,-500.0,0.00032876,7]
[355893402,1741692653681,-500.0,0.00032876,7]
[355893403,1741692653691,-500.0,0.00032876,7]
[355893404,1741692653700,-500.0,0.00032876,7]
[355893405,1741692653710,-1113.3,0.00032876,7]
[355893406,1741692653719,-1066.5,0.00032876,7]
[355893407,1741692653728,-500.0,0.00032876,7]
[355893408,1741692653738,-506.90111563,0.00032876,7]
[355893409,1741692653747,-500.0,0.00032876,7]
[355893410,1741692653757,-500.0,0.00032876,7]
[355893411,1741692653766,-515.84506515,0.00032876,7]
[355893412,1741692653775,-615.87696535,0.00032876,7]
[355893413,1741692653785,-627.06979101,0.00032876,7]
[355893414,1741692653794,-500.0,0.00032876,7]
[355893415,1741692653803,-543.05535058,0.00032876,7]
[355893416,1741692653813,-500.0,0.00032876,7]
[355893417,1741692653823,-1119.6,0.00032876,7]
[355893418,1741692653832,-866.02,0.00032876,7]
[355893419,1741692653842,-717.36,0.00032876,7]
[355893420,1741692653851,-500.0,0.00032876,7]
[355893421,1741692653861,-500.0,0.00032876,7]
[355893422,1741692653871,-616.21,0.00032876,7]
[355893423,1741692653880,-1945.06,0.00032876,7]
[355893424,1741692653890,-500.0,0.00032876,7]
[355893425,1741692653899,-530.01,0.00032876,7]
[355893426,1741692653909,-500.0,0.00032876,7]
[355893427,1741692653919,-500.0,0.00032876,7]
[355893428,1741692653929,-500.0,0.00032876,7]
[355893429,1741692653938,-1368.27,0.00032876,7]
[355893430,1741692653947,-500.0,0.00032876,7]
[355893431,1741692653957,-500.0,0.00032876,7]
[355893432,1741692653967,-758.13,0.00032876,7]
[355893433,1741692653977,-500.0,0.00032876,7]
[355893434,1741692653986,-500.12,0.00032876,7]
[355893435,1741692653996,-1554.26,0.00032876,7]
[355893436,1741692654005,-500.0,0.00032876,120]
[355893437,1741692654015,-500.0,0.00032876,7]
[355893438,1741692654025,-1375.1,0.00032876,7]
[355893439,1741692654034,-500.0,0.00032876,7]
[355893440,1741692654044,-500.0,0.00032876,7]
[355893441,1741692654053,-535.92741956,0.00032876,7]
[355893442,1741692654063,-500.0,0.00032876,7]
[355893443,1741692654073,-500.0,0.00032876,7]
[355893444,1741692654082,-531.25141596,0.00032876,7]
[355893445,1741692654091,-500.0,0.00032876,7]
[355893446,1741692654101,-500.0,0.00032876,7]
[355893447,1741692654111,-500.0,0.00032876,7]
[355893448,1741692654120,-505.73,0.00032876,7]
[355893449,1741692654129,-524.1,0.00032876,7]
[355893450,1741692654139,-1637.46,0.00032876,7]
[355893451,1741692654148,-500.0,0.00032876,7]
[355893452,1741692654158,-523.91359633,0.00032876,7]
[355893453,1741692654167,-793.78,0.00032876,7]
[355893454,1741692654177,-534.37038516,0.00032876,7]
[355893455,1741692654186,-500.0,0.00032876,7]
[355893456,1741692654196,-500.0,0.00032876,7]
[355893457,1741692654206,-151.0,0.00032876,7]
[355893458,1741692654216,-151.0,0.00032876,7]
[355893459,1741692654225,-978.47,0.00032876,7]
[355893460,1741692654234,-850.19,0.00032876,7]
[355893461,1741692654244,-151.0,0.00032876,7]
[355893462,1741692654253,-850.19,0.00032876,7]
[355893463,1741692654263,-1428.96,0.00032876,7]
[355893464,1741692654273,-850.19,0.00032876,7]
[355893465,1741692654282,-151.0,0.00032876,7]
[355893466,1741692654292,-850.19,0.00032876,7]
[355893467,1741692654301,-850.19,0.00032876,7]
[355893468,1741692654310,-8053.96,0.00032876,7]
[355893469,1741692654320,-850.19,0.00032876,7]
[355893470,1741692654329,-151.0,0.00032876,7]
[355893471,1741692654339,-850.19,0.00032876,7]
[355893472,1741692654348,-850.19,0.00032876,7]
[355893473,1741692654358,-151.0,0.00032876,7]
[355893474,1741692654367,-850.19,0.00032876,7]
[355893475,1741692654377,-850.19,0.00032876,7]
[355893476,1741692654386,-500.0,0.00032876,7]
[355893477,1741692654396,-151.0,0.00032876,7]
[355893478,1741692654405,-850.19,0.00032876,7]
[355893479,1741692654415,-850.19,0.00032876,7]
[355893480,1741692654428,-151.0,0.00032876,7]
[355893481,1741692654437,-850.19,0.00032876,7]
[355893482,1741692654447,-932.7,0.00032876,7]
[355893483,1741692654457,-850.19,0.00032876,7]
[355893484,1741692654467,-151.0,0.00032876,7]
[355893485,1741692654477,-500.0,0.00032876,7]
[355893486,1741692654486,-850.19,0.00032876,7]
[355893487,1741692654495,-850.19,0.00032876,7]
[355893488,1741692654506,-850.19,0.00032876,7]
[355893489,1741692654515,-183.88474207,0.00032876,7]
[355893490,1741692654643,-850.19,0.00032876,7]
[355893491,1741692654652,-151.0,0.00032876,7]
[355893492,1741692654661,-850.19,0.00032876,7]
[355893493,1741692654671,-850.19,0.00032876,7]
[355893494,1741692654680,-151.0,0.00032876,7]
[355893495,1741692654690,-850.19,0.00032876,7]
[355893496,1741692654699,-290.701012,0.00032876,7]
[355893497,1741692654708,-850.19,0.00032876,7]
[355893498,1741692654718,-850.19,0.00032876,7]
[355893499,1741692654727,-850.25140421,0.00032876,7]
[355893500,1741692654736,-1470.86,0.00032876,7]
[355893501,1741692654746,-500.0,0.00032876,7]
[355893502,1741692654755,-5850.58,0.00032876,7]
[355893503,1741692654766,-160.0,0.00032876,7]
[355893504,1741692654775,-1107.41,0.00032876,7]
[355893505,1741692654785,-845.62,0.00032876,7]
[355893506,1741692654794,-500.0,0.00032876,7]
[355893507,1741692654804,-897.5,0.00032876,7]
[355893508,1741692654813,-615.48,0.00032876,7]
[355893509,1741692654823,-186274.25906507,0.00032876,7]
[355893510,1741692657420,-198.88020068,0.00032756,2]
[355893511,1741692657431,-198.88020067,0.00032776,2]
[355893512,1741692657441,-782.84959692,0.00032876,7]
[355893526,1741693021668,1100.0,0.00025205,30]
[355893527,1741693099814,160.0,0.0002,3]
[355893532,1741693326861,702.10993981,0.000198,30]
[355893535,1741693382624,165.0,0.00025,2]
[355893536,1741693410454,160.0,0.0002,3]
[355893537,1741693410899,160.0,0.0002,3]
[355893539,1741693602364,150.0,0.00023105,2]
[355893540,1741693631843,25213.95131912,0.00025204,10]
[355893548,1741693770162,-416.66666667,0.00028,3]
[355893549,1741693770186,-166.58345827,0.00028005,2]
[355893550,1741693770209,-150.0,0.00028105,2]
[355893551,1741693770233,-64.01950778,0.00028999,2]
[355893584,1741693832207,-124.86049222,0.00028999,2]
[355893586,1741693832217,-2000.0,0.0003,2]
[355893588,1741693832227,-2000.0,0.0003,2]
[355893590,1741693832237,-833.78007673,0.00030236,2]
[355893592,1741693832247,-188.88,0.00030369,2]
[355893594,1741693832257,-833.78007673,0.00030505,2]
[355893596,1741693832267,-833.78007673,0.00030859,2]
[355893599,1741693832278,-2208.60202284,0.000309,5]
[355893601,1741693832288,-833.78007673,0.00030993,2]
[355893603,1741693832297,-810.6563029,0.00031267,2]
[355893605,1741693832307,-177.8961927,0.00031288,7]
[355893607,1741693832316,-500.0,0.00031288,7]
[355893609,1741693832326,-833.78007673,0.00031385,2]
[355893611,1741693832335,-500.0,0.00031553,2]
[355893613,1741693832345,-833.78007673,0.00031569,2]
[355893614,1741693832354,-188.88,0.00031739,2]
[355893616,1741693832364,-833.78007673,0.00031859,2]
[355893617,1741693832374,-190.0,0.00032,7]
[355893618,1741693832384,-180.0,0.00032,2]
[355893619,1741693832394,-178.20308903,0.00032,3]
[355893621,1741693832403,-4119.3518167,0.00032218,4]
[355893623,1741693832413,-833.78007673,0.00032318,2]
[355893624,1741693832423,-1135.0,0.000324,10]
[355893625,1741693832433,-1366.4863273,0.00032437,2]
[355893626,1741693832442,-977.91943791,0.00032437,2]
[355893627,1741693832451,-833.78007673,0.00032489,2]
[355893628,1741693832461,-27248.92785283,0.000325,10]
[355893629,1741693832470,-151.0,0.000325,16]
[355893630,1741693832480,-150.26,0.00032517,2]
[355893631,1741693832489,-150.26,0.00032517,2]
[355893632,1741693832499,-150.26,0.00032517,2]
[355893633,1741693832508,-150.26,0.00032517,2]
[355893634,1741693832518,-150.26,0.00032517,2]
[355893635,1741693832527,-6534.79,0.00032527,3]
[355893636,1741693832537,-2493.84501076,0.00032527,3]
[355893637,1741693833071,-773.54498924,0.00032527,3]
[355893638,1741693833081,-1633.7,0.00032527,3]
[355893639,1741693833091,-816.85,0.00032527,3]
[355893640,1741693833101,-176.32830123,0.00032527,3]
[355893655,1741693838052,-232.09169877,0.00032527,3]
[355893656,1741693838062,-425.78035054,0.00032527,2]
[355893657,1741693838074,-254.21964946,0.00032527,2]
[355893658,1741693838083,-204.21,0.00032527,3]
[355893659,1741693838093,-612.66,0.00032527,3]
[355893660,1741693838103,-680.0,0.00032527,2]
[355893661,1741693838112,-140.14637586,0.00032527,2]
[355893662,1741693838134,-539.85362414,0.00032527,2]
[355893663,1741693838143,-150.26,0.00032527,2]
[355893664,1741693838153,-150.26,0.00032527,2]
[355893666,1741693838162,-150.26,0.00032527,2]
[355893668,1741693838172,-150.26,0.00032527,2]
[355893669,1741693838181,-150.26,0.00032527,2]
[355893670,1741693838191,-632.84633401,0.00032536,2]
[355893672,1741693838200,-404.68372116,0.00032536,2]
[355893674,1741693838209,-1674.34,0.00032537,3]
[355893675,1741693838219,-39859.71776059,0.00032537,2]
[355893677,1741693838231,-156823.43900141,0.00032537,2]
[355893678,1741693838240,-4507.99923204,0.00032537,2]
[355893679,1741693838250,-1713.05346061,0.00032544,2]
[355893680,1741693838259,-215833.89551333,0.00032547,2]
[355893681,1741693838269,-3053.66675344,0.00032549,2]
[355893682,1741693838278,-151.0,0.000326,12]
[355893683,1741693838288,-151.0,0.000326,15]
[355893684,1741693838296,-151.0,0.000326,18]
[355893685,1741693838308,-3053.66675344,0.00032606,2]
[355893686,1741693838317,-833.78007674,0.00032635,2]
[355893687,1741693838326,-3053.66675344,0.00032663,2]
[355893688,1741693838335,-151.0,0.000327,10]
[355893689,1741693838344,-151.0,0.000327,15]
[355893690,1741693838354,-151.0,0.000327,16]
[355893691,1741693838363,-3053.66675344,0.00032719,2]
[355893692,1741693838373,-4186.860277,0.00032766,2]
[355893693,1741693838383,-3053.66675344,0.00032776,2]
[355893694,1741693838392,-179.86575994,0.00032776,2]
[355893695,1741693838402,-190.0,0.000328,7]
[355893696,1741693838411,-190.0,0.000328,7]
[355893697,1741693838420,-180.0,0.000328,7]
[355893698,1741693838429,-151.0,0.000328,16]
[355893699,1741693838439,-151.0,0.000328,17]
[355893700,1741693838448,-151.0,0.000328,14]
[355893701,1741693838458,-335.593249,0.00032822,30]
[355893702,1741693838467,-151.0,0.00032846,2]
[355893703,1741693838477,-600.0,0.00032846,2]
[355893704,1741693838487,-1000.0,0.00032849,2]
[355893705,1741693838497,-1000.0,0.00032849,2]
[355893706,1741693838508,-1000.0,0.00032849,2]
[355893707,1741693838517,-1000.0,0.00032849,2]
[355893708,1741693838526,-1000.0,0.00032849,2]
[355893709,1741693838535,-1000.0,0.00032849,2]
[355893710,1741693838545,-1000.0,0.00032849,2]
[355893711,1741693838554,-1000.0,0.00032849,2]
[355893712,1741693838564,-1000.0,0.00032849,2]
[355893713,1741693838574,-1000.0,0.00032849,2]
[355893714,1741693838584,-1000.0,0.00032849,2]
[355893715,1741693838594,-1000.0,0.00032849,2]
[355893716,1741693838603,-589.83134098,0.00032849,2]
[355893717,1741693838612,-49170.7891905,0.00032856,2]
[355893718,1741693838622,-1126.99980801,0.00032856,2]
[355893719,1741693838632,-49170.7891905,0.0003286,2]
[355893720,1741693838641,-1126.99980801,0.0003286,2]
[355893721,1741693838651,-680.0,0.00032865,2]
[355893722,1741693838660,-500.0,0.00032865,2]
[355893723,1741693838670,-503.02538616,0.00032865,7]
[355893724,1741693838680,-15777.9973121,0.00032866,2]
[355893725,1741693838689,-151.0,0.00032866,7]
[355893726,1741693838699,-2874.32745945,0.0003287,120]
[355893727,1741693838708,-523.35065063,0.0003287,120]
[355893728,1741693838717,-680.0,0.00032872,2]
[355893729,1741693838727,-618.6049974,0.00032873,5]
[355893730,1741693838736,-278.33052093,0.00032873,5]
[355893731,1741693838745,-500.0,0.00032873,5]
[355893732,1741693838755,-500.0,0.00032873,5]
[355893733,1741693838764,-500.0,0.00032873,5]
[355893734,1741693838773,-500.0,0.00032873,5]
[355893735,1741693838783,-500.0,0.00032873,5]
[355893736,1741693838792,-502.59518066,0.00032873,5]
[355893737,1741693838801,-206.13843323,0.00032873,5]
[355893738,1741693838815,-502.21569284,0.00032873,5]
[355893739,1741693838824,-501.24900479,0.00032873,5]
[355893740,1741693838834,-503.77453543,0.00032873,5]
[355893741,1741693838843,-500.0,0.00032873,5]
[355893742,1741693838853,-500.0,0.00032873,5]
[355893743,1741693838862,-159.41205986,0.00032873,5]
[355893744,1741693838871,-160.40333842,0.00032873,5]
[355893745,1741693838882,-160.40019752,0.00032873,5]
[355893746,1741693838893,-159.39769429,0.00032873,5]
[355893747,1741693838903,-500.0,0.00032873,5]
[355893748,1741693838912,-160.39544876,0.00032873,5]
[355893749,1741693838921,-608.62514039,0.00032873,5]
[355893750,1741693838931,-500.0,0.00032873,5]
[355893751,1741693838940,-500.0,0.00032873,5]
[355893752,1741693838950,-500.0,0.00032873,5]
[355893753,1741693838959,-500.0,0.00032873,5]
[355893754,1741693838968,-500.0,0.00032873,5]
[355893755,1741693838977,-500.0,0.00032873,5]
[355893756,1741693838987,-160.23977453,0.00032873,5]
[355893757,1741693838996,-160.39503563,0.00032873,5]
[355893758,1741693839007,-160.41464031,0.00032873,5]
[355893759,1741693839016,-502.8339842,0.00032873,5]
[355893760,1741693839025,-290.84148185,0.00032873,5]
[355893761,1741693839035,-505.38965201,0.00032873,5]
[355893762,1741693839044,-407.4997466,0.00032873,5]
[355893763,1741693839054,-500.0,0.00032873,5]
[355893764,1741693839063,-500.0,0.00032873,5]
[355893765,1741693839072,-500.0,0.00032873,5]
[355893766,1741693839081,-500.0,0.00032873,5]
[355893767,1741693839091,-500.0,0.00032873,5]
[355893768,1741693839101,-210.8573301,0.00032873,5]
[355893769,1741693839110,-252.28888901,0.00032873,5]
[355893770,1741693839119,-502.09756647,0.00032873,5]
[355893771,1741693839130,-500.0,0.00032873,2]
[355893772,1741693839140,-151.57515892,0.00032873,5]
[355893773,1741693839149,-500.0,0.00032873,5]
[355893774,1741693839159,-501.21389799,0.00032873,5]
[355893775,1741693839168,-500.0,0.00032873,5]
[355893776,1741693839178,-500.0,0.00032873,5]
[355893777,1741693839187,-285.466711,0.00032873,7]
[355893778,1741693839196,-285.466711,0.00032873,7]
[355893779,1741693839206,-151.0,0.00032873,7]
[355893780,1741693839217,-151.0,0.00032873,7]
[355893781,1741693839226,-680.0,0.00032874,2]
[355893782,1741693839235,-680.0,0.00032875,2]
[355893783,1741693839245,-680.0,0.00032875,2]
[355893784,1741693839255,-680.0,0.00032875,2]
[355893785,1741693839264,-386.41854372,0.00032875,2]
[355893786,1741693839273,-197.509051,0.00032876,7]
[355893787,1741693839283,-197.509051,0.00032876,7]
[355893788,1741693839293,-197.509051,0.00032876,7]
[355893789,1741693839303,-197.509051,0.00032876,7]
[355893790,1741693839312,-197.509051,0.00032876,7]
[355893791,1741693839321,-197.509051,0.00032876,7]
[355893792,1741693839331,-197.509051,0.00032876,7]
[355893793,1741693839340,-197.509051,0.00032876,7]
[355893794,1741693839350,-197.509051,0.00032876,7]
[355893795,1741693839359,-197.509051,0.00032876,7]
[355893796,1741693839368,-197.509051,0.00032876,7]
[355893797,1741693839377,-197.509051,0.00032876,7]
[355893798,1741693839387,-197.509051,0.00032876,7]
[355893799,1741693839396,-197.509051,0.00032876,7]
[355893800,1741693839406,-197.509051,0.00032876,7]
[355893801,1741693839415,-197.509051,0.00032876,7]
[355893802,1741693839424,-197.509051,0.00032876,7]
[355893803,1741693839434,-197.509051,0.00032876,7]
[355893804,1741693839443,-197.509051,0.00032876,7]
[355893805,1741693839452,-197.509052,0.00032876,7]
[355893806,1741693839461,-151.0,0.00032876,7]
[355893807,1741693839470,-154.15145,0.00032876,7]
[355893808,1741693839478,-151.0,0.00032876,7]
[355893809,1741693839489,-151.0,0.00032876,7]
[355893810,1741693839499,-151.0,0.00032876,7]
[355893811,1741693839509,-151.0,0.00032876,7]
[355893812,1741693839518,-151.0,0.00032876,7]
[355893813,1741693839528,-151.0,0.00032876,7]
[355893814,1741693839538,-151.0,0.00032876,7]
[355893815,1741693839548,-217.93172,0.00032876,7]
[355893816,1741693839557,-285.466711,0.00032876,7]
[355893817,1741693839566,-285.466711,0.00032876,7]
[355893818,1741693839576,-285.466711,0.00032876,7]
[355893819,1741693839585,-285.466711,0.00032876,7]
[355893820,1741693839594,-285.466711,0.00032876,7]
[355893821,1741693839603,-285.466711,0.00032876,7]
[355893822,1741693839613,-285.466711,0.00032876,7]
[355893823,1741693839623,-285.466711,0.00032876,7]
[355893825,1741693839767,-285.466711,0.00032876,7]
[355893826,1741693839777,-500.0,0.00032876,7]
[355893827,1741693839786,-285.466711,0.00032876,7]
[355893828,1741693839796,-285.466711,0.00032876,7]
[355893829,1741693839805,-285.466711,0.00032876,7]
[355893830,1741693839819,-285.466711,0.00032876,7]
[355893831,1741693839828,-285.466711,0.00032876,7]
[355893832,1741693839837,-285.466711,0.00032876,7]
[355893833,1741693839847,-285.466711,0.00032876,7]
[355893834,1741693839858,-285.466711,0.00032876,7]
[355893835,1741693839867,-285.466703,0.00032876,7]
[355893836,1741693839877,-151.0,0.00032876,7]
[355893837,1741693839887,-151.0,0.00032876,7]
[355893838,1741693839897,-151.0,0.00032876,7]
[355893839,1741693839906,-151.0,0.00032876,7]
[355893840,1741693839915,-151.0,0.00032876,7]
[355893841,1741693839925,-155.973588,0.00032876,7]
[355893843,1741693839935,-151.0,0.00032876,7]
[355893844,1741693839945,-277.399154,0.00032876,7]
[355893845,1741693839954,-151.0,0.00032876,7]
[355893846,1741693839963,-151.0,0.00032876,7]
[355893847,1741693839973,-157.152008,0.00032876,7]
[355893848,1741693839983,-151.0,0.00032876,7]
[355893849,1741693839993,-500.0,0.00032876,7]
[355893850,1741693840002,-505.88099795,0.00032876,7]
[355893851,1741693840012,-500.0,0.00032876,7]
[355893852,1741693840021,-417.83917886,0.00032876,7]
[355893853,1741693840031,-500.0,0.00032876,7]
[355893855,1741693840040,-500.0,0.00032876,7]
[355893856,1741693840050,-500.0,0.00032876,7]
[355893857,1741693840059,-500.0,0.00032876,7]
[355893858,1741693840069,-209.28856564,0.00032876,7]
[355893859,1741693840078,-1242.05,0.00032876,7]
[355893860,1741693840088,-679.02,0.00032876,7]
[355893861,1741693840098,-500.0,0.00032876,7]
[355893863,1741693840107,-500.0,0.00032876,7]
[355893864,1741693840117,-500.0,0.00032876,7]
[355893865,1741693840128,-514.03712434,0.00032876,7]
[355893866,1741693840138,-500.0,0.00032876,7]
[355893867,1741693840148,-500.0,0.00032876,7]
[355893868,1741693840158,-639.64644162,0.00032876,7]
[355893869,1741693840168,-500.0,0.00032876,7]
[355893870,1741693840178,-539.90973969,0.00032876,7]
[355893871,1741693840188,-500.0,0.00032876,7]
[355893872,1741693840198,-520.32239324,0.00032876,7]
[355893873,1741693840208,-500.0,0.00032876,7]
[355893874,1741693840218,-558.3,0.00032876,7]
[355893875,1741693840229,-500.0,0.00032876,7]
[355893876,1741693840238,-596.53639265,0.00032876,7]
[355893877,1741693840248,-500.0,0.00032876,7]
[355893878,1741693840258,-500.0,0.00032876,7]
[355893879,1741693840268,-500.0,0.00032876,7]
[355893880,1741693840277,-500.0,0.00032876,7]
[355893881,1741693840286,-190.84821005,0.00032876,7]
[355893882,1741693840295,-500.0,0.00032876,7]
[355893884,1741693840305,-151.0,0.00032876,7]
[355893886,1741693840314,-151.0,0.00032876,7]
[355893888,1741693840323,-151.0,0.00032876,7]
[355893889,1741693840333,-151.0,0.00032876,7]
[355893891,1741693840342,-151.0,0.00032876,7]
[355893892,1741693840352,-500.0,0.00032876,7]
[355893893,1741693840362,-500.0,0.00032876,7]
[355893894,1741693840371,-509.17370219,0.00032876,7]
[355893895,1741693840381,-500.0,0.00032876,7]
[355893896,1741693840390,-500.0,0.00032876,7]
[355893897,1741693840399,-500.0,0.00032876,7]
[355893898,1741693840409,-500.0,0.00032876,7]